fUST/lending_fUST_20250629
["ID","MTS","AMOUNT","RATE_DAILY","PERIOD"]
[368331858,1751126444571,2000.0,0.000181,2]
[368331859,1751126449257,793.62271178,0.00018078,2]
[368331860,1751126498745,634.89816944,0.00018078,2]
[368331861,1751126538363,507.91853556,0.00018078,2]
[368331862,1751126560205,268.90549903,0.0001759,2]
[368331863,1751126593097,406.33482844,0.00018078,2]
[368331864,1751126594377,294.754177,0.00018028,2]
[368331865,1751126655882,255.0,0.00017932,2]
[368331866,1751126694694,325.06786276,0.00018078,2]
[368331867,1751126736158,260.0542902,0.00018078,2]
[368331868,1751126780928,208.04343216,0.00018078,2]
[368331869,1751126822884,166.43474572,0.00018078,2]
[368331870,1751126832123,-663.32570053,0.00018134,2]
[368331871,1751126861691,161.34329942,0.0001759,2]
[368331872,1751126949075,166.43474571,0.00018078,2]
[368331873,1751126955073,232.4756101,0.00017951,2]
[368331926,1751127032772,-727.83999357,0.00018134,2]
[368331929,1751127032784,-183.82652816,0.0001821,2]
[368331931,1751127032793,-186.073361,0.00018501,2]
[368331933,1751127032803,-186.073361,0.00018502,2]
[368331935,1751127032813,-1958.56518753,0.00018985,2]
[368331937,1751127032823,-300.0,0.00019076,2]
[368331939,1751127032833,-364.0,0.00019076,2]
[368331941,1751127032842,-300.0,0.00019076,2]
[368331943,1751127032852,-3250.99325179,0.00019077,2]
[368331994,1751127033346,-2204.7,0.00019077,2]
[368331996,1751127033358,-1194.0,0.00019077,2]
[368331998,1751127033370,-1275.49,0.00019077,2]
[368332234,1751127038995,-765.0,0.00019077,2]
[368332235,1751127039007,-5180.706132,0.00019077,2]
[368332236,1751127039019,-571.49676507,0.00019077,2]
[368332237,1751127039028,-270.21858572,0.00019077,2]
[368332238,1751127039037,-13932.06237176,0.00019077,2]
[368332239,1751127039047,-17518.48450008,0.0001908,2]
[368332240,1751127039058,-5321.4040781,0.0001908,2]
[368332241,1751127039070,-16144.80817348,0.0001908,2]
[368332242,1751127039085,-816687.60060734,0.0001908,2]
[368332243,1751127039096,-338.99,0.00019167,2]
[368332244,1751127039105,-177.92820716,0.00019167,2]
[368332245,1751127039115,-625.47,0.00019167,3]
[368332246,1751127039124,-312.74,0.00019167,3]
[368332247,1751127039133,-156.37,0.00019167,3]
[368332248,1751127039142,-469.12,0.00019167,3]
[368332249,1751127039153,-500.68598519,0.0001917,2]
[368332250,1751127039162,-500.0,0.0001917,2]
[368332251,1751127039172,-500.0,0.0001917,2]
[368332252,1751127039181,-500.0,0.0001917,2]
[368332253,1751127039191,-500.0,0.0001917,2]
[368332254,1751127039200,-287.03863682,0.0001917,2]
[368332255,1751127039209,-423.61294335,0.0001917,2]
[368332257,1751127039219,-500.0,0.0001917,2]
[368332259,1751127039229,-500.0,0.0001917,2]
[368332261,1751127039238,-500.0,0.0001917,2]
[368332263,1751127039247,-500.0,0.0001917,2]
[368332265,1751127039256,-364.5745506,0.0001917,2]
[368332267,1751127039265,-500.0,0.0001917,2]
[368332269,1751127039275,-500.0,0.0001917,2]
[368332271,1751127039284,-500.0,0.0001917,2]
[368332273,1751127039293,-500.0,0.0001917,2]
[368332275,1751127039303,-500.0,0.0001917,2]
[368332277,1751127039312,-234.24200329,0.0001917,2]
[368332279,1751127039321,-500.0,0.0001917,2]
[368332280,1751127039330,-500.0,0.0001917,2]
[368332282,1751127039340,-500.0,0.0001917,2]
[368332284,1751127039354,-500.0,0.0001917,2]
[368332286,1751127039363,-500.0,0.0001917,2]
[368332288,1751127039373,-500.0,0.0001917,2]
[368332290,1751127039382,-500.0,0.0001917,2]
[368332292,1751127039393,-500.0,0.0001917,2]
[368332294,1751127039403,-268.50851868,0.0001917,2]
[368332296,1751127039412,-500.0,0.0001917,2]
[368332298,1751127039422,-500.0,0.0001917,2]
[368332300,1751127039432,-557.79565925,0.0001917,2]
[368332302,1751127039441,-584.5127153,0.00019173,2]
[368332304,1751127039450,-500.0,0.00019173,2]
[368332306,1751127039459,-501.72407384,0.00019173,2]
[368332308,1751127039468,-501.18341451,0.00019173,2]
[368332310,1751127039477,-500.0,0.00019173,2]
[368332312,1751127039486,-500.0,0.00019173,2]
[368332314,1751127039495,-500.0,0.00019173,2]
[368332316,1751127039505,-500.0,0.00019173,2]
[368332317,1751127039515,-500.0,0.00019173,2]
[368332319,1751127039524,-500.68515548,0.00019173,2]
[368332321,1751127039534,-500.0,0.00019173,2]
[368332323,1751127039543,-289.89459634,0.00019173,2]
[368332325,1751127039553,-1000.0,0.00019176,2]
[368332327,1751127039562,-1000.0,0.00019176,2]
[368332329,1751127039571,-1000.0,0.00019176,2]
[368332331,1751127039580,-1000.0,0.00019176,2]
[368332333,1751127039589,-1000.0,0.00019176,2]
[368332335,1751127039598,-1000.0,0.00019176,2]
[368332337,1751127039607,-1000.0,0.00019176,2]
[368332339,1751127039617,-156.11690601,0.00019176,2]
[368332341,1751127039626,-123168.3167891,0.00019177,3]
[368332343,1751127039639,-2191.41504593,0.00019177,3]
[368332356,1751127039746,-1766.69930332,0.00019177,3]
[368332683,1751127042986,-1870.17393402,0.00019177,3]
[368332691,1751127043055,-500.0,0.00019177,3]
[368332694,1751127043067,-305.96,0.00019177,3]
[368332696,1751127043078,-359.50100004,0.00019177,3]
[368332698,1751127043090,-45369.1788685,0.00019177,3]
[368332701,1751127043102,-366.0670543,0.00019177,3]
[368332766,1751127043889,-14972.0877009,0.00019177,3]
[368332768,1751127043902,-12431.44780825,0.00019177,3]
[368332771,1751127043914,-586.90671484,0.00019177,3]
[368332773,1751127043929,-2013.30535406,0.00019177,3]
[368332775,1751127043940,-84093.24147343,0.00019177,3]
[368332779,1751127043970,-10891.35660498,0.00019177,3]
[368333053,1751127046665,-3580.0,0.00019177,3]
[368333055,1751127046677,-2365.08100057,0.00019177,3]
[368333057,1751127046688,-3166.97433352,0.00019177,3]
[368333062,1751127046725,-9999.5719998,0.00019177,3]
[368337556,1751127157199,318.43049459,0.00024657,120]
[368337557,1751127279420,180.01620146,0.00017724,2]
[368337575,1751127358760,24900.0,0.00018078,2]
[368337579,1751127366990,166.43474571,0.00018077,2]
[368337586,1751127464147,571.21516569,0.00017632,2]
[368337588,1751127471785,166.43474571,0.00018076,2]
[368337590,1751127498923,1357.0616496,0.00017944,2]
[368337593,1751127565015,880.838314,0.00017874,2]
[368337594,1751127576427,166.43474571,0.00018076,2]
[368337601,1751127650441,99315.0821513,0.00017791,2]
[368337603,1751127676373,222.156723,0.00013699,2]
[368337605,1751127766105,342.72909941,0.00017632,2]
[368337607,1751127804495,641.4779972,0.00017706,2]
[368337615,1751127959535,255.2150648,0.00017742,2]
[368337616,1751128027523,10000.0,0.00017659,2]
[368337617,1751128044145,-666.86388398,0.00018133,2]
[368337618,1751128055671,240.57555738,0.00018033,2]
[368337619,1751128067041,491.81698681,0.00017632,2]
[368337632,1751128122867,578.38444796,0.000149,2]
[368337633,1751128123069,1000.0,0.0001,2]
[368337637,1751128168312,204.32057978,0.00018033,2]
[368337638,1751128218087,199.20518931,0.00018033,2]
[368337738,1751128231810,-151.52728902,0.00018133,2]
[368337740,1751128231820,-171.83,0.00018133,2]
[368337742,1751128231830,-171.83,0.00018133,2]
[368337744,1751128231838,-171.83,0.00018133,2]
[368337746,1751128231848,-160.0,0.00018176,2]
[368337748,1751128231858,-300.0,0.00018176,2]
[368337750,1751128231867,-300.0,0.00018176,2]
[368337752,1751128231876,-300.0,0.00018176,2]
[368337754,1751128231885,-300.0,0.00018176,2]
[368337756,1751128231895,-1200.0,0.00018176,2]
[368337758,1751128231904,-297.0,0.00018177,2]
[368337760,1751128231913,-76.2682894,0.00018178,2]
[368337765,1751128231924,-12215.74459824,0.00018178,2]
[368337769,1751128231934,-2155.01922256,0.00018178,2]
[368337773,1751128231943,-177.0,0.00018356,2]
[368337776,1751128231952,-177.0,0.00018414,2]
[368337779,1751128231962,-224.38249173,0.00018515,2]
[368337782,1751128231971,-177.0,0.00018698,2]
[368337785,1751128231981,-177.0,0.00018781,2]
[368337788,1751128231990,-439.066028,0.00018794,2]
[368337790,1751128231999,-283.0,0.00018854,2]
[368337792,1751128232011,-568.1551002,0.00018892,2]
[368337794,1751128232020,-283.0,0.00018916,2]
[368337796,1751128232028,-568.15510018,0.00018983,2]
[368337798,1751128232037,-27950.51562371,0.00018985,2]
[368337800,1751128232053,-4199.499995,0.00018985,2]
[368337876,1751128237935,-500.0,0.00018984,2]
[368337877,1751128237945,-500.0,0.00018984,2]
[368337878,1751128237955,-500.0,0.00018984,2]
[368337879,1751128237964,-500.0,0.00018984,2]
[368337880,1751128237974,-500.0,0.00018984,2]
[368337881,1751128237983,-500.0,0.00018984,2]
[368337882,1751128237993,-500.0,0.00018984,2]
[368337883,1751128238002,-500.0,0.00018984,2]
[368337884,1751128238014,-500.0,0.00018984,2]
[368337885,1751128238026,-245.97755183,0.00018984,2]
[368337886,1751128238036,-500.0,0.00018984,2]
[368337887,1751128238046,-500.0,0.00018984,2]
[368337888,1751128238056,-500.0,0.00018984,2]
[368337889,1751128238067,-500.0,0.00018984,2]
[368337890,1751128238076,-500.0,0.00018984,2]
[368337891,1751128238086,-500.0,0.00018984,2]
[368337892,1751128238095,-500.0,0.00018984,2]
[368337893,1751128238106,-388.61735526,0.00018984,2]
[368337894,1751128238117,-500.0,0.00018984,2]
[368337895,1751128238126,-285.46645614,0.00018984,2]
[368337896,1751128238136,-500.0,0.00018984,2]
[368337897,1751128238145,-500.0,0.00018984,2]
[368337898,1751128238155,-500.0,0.00018984,2]
[368337899,1751128238164,-500.0,0.00018984,2]
[368337900,1751128238174,-500.0,0.00018984,2]
[368337901,1751128238183,-500.0,0.00018984,2]
[368337902,1751128238192,-500.0,0.00018984,2]
[368337903,1751128238202,-328.97697209,0.00018984,2]
[368337904,1751128238335,-171.02302791,0.00018984,2]
[368337905,1751128238345,-500.0,0.00018984,2]
[368337906,1751128238354,-474.56085823,0.00018984,2]
[368337959,1751128268190,201.69336341,0.00018033,2]
[368338028,1751128306399,359.4703468,0.00017986,2]
[368338140,1751128327286,214.66639246,0.00018033,2]
[368338141,1751128375768,164.06415745,0.00018033,2]
[368338142,1751128448049,25563.2834678,0.00017927,2]
[368338154,1751128639397,1515.6295173,0.00017919,2]
[368338156,1751128698633,224.418585,0.00013699,2]
[368338157,1751128726732,1415.214601,0.00017905,2]
[368338158,1751128771224,1437.4943603,0.00017918,2]
[368338159,1751128804009,24900.0,0.00017907,2]
[368338160,1751128996617,164.915565,0.00017794,2]
[368338161,1751128996676,164.915565,0.00017812,2]
[368338162,1751128996828,164.915565,0.0001783,2]
[368338163,1751128997023,164.915565,0.00017848,2]
[368338164,1751128997422,164.915565,0.00017865,2]
[368338165,1751128997632,164.915565,0.00017883,2]
[368338166,1751129068776,278.0,0.00017916,2]
[368338167,1751129073242,278.0,0.00017977,2]
[368338168,1751129076892,278.0,0.00017997,2]
[368338169,1751129236365,-204.32057977,0.00018203,2]
[368338170,1751129236386,-448.37741369,0.00018303,2]
[368338171,1751129320284,2861.3865494,0.00017812,2]
[368338173,1751129403513,19676.8434833,0.000161,2]
[368338185,1751129432078,-314.54692683,0.00018303,2]
[368338187,1751129432090,-137.07565948,0.00018303,2]
[368338188,1751129432099,-300.0,0.00018303,2]
[368338190,1751129432109,-300.0,0.00018304,2]
[368338192,1751129432118,-11.82532314,0.00018304,2]
[368338194,1751129432131,-288.17467686,0.00018304,2]
[368338196,1751129432141,-300.0,0.00018304,2]
[368338198,1751129432150,-1200.0,0.00018304,2]
[368338200,1751129432160,-440.45498111,0.00018305,5]
[368338202,1751129432172,-9751.22565131,0.00018305,5]
[368338204,1751129432186,-216.237839,0.00018333,2]
[368338206,1751129432196,-168.0,0.00018356,2]
[368338208,1751129432206,-186.97127258,0.00018405,2]
[368338209,1751129432216,-1078.0,0.00018757,2]
[368338212,1751129432226,-1624.70309541,0.00018757,2]
[368338216,1751129432235,-376.34231,0.00018794,2]
[368338219,1751129432245,-168.0,0.00018841,2]
[368338221,1751129432255,-168.0,0.00018866,2]
[368338222,1751129432264,-160.0,0.00018891,2]
[368338224,1751129432273,-177.5104021,0.000189,2]
[368338226,1751129432283,-159.266168,0.000189,2]
[368338229,1751129432292,-177.5104021,0.000189,2]
[368338232,1751129432302,-154.3521965,0.000189,2]
[368338235,1751129432311,-575.2177202,0.000189,2]
[368338238,1751129432321,-1835.22816126,0.000189,2]
[368338241,1751129432330,-168.0,0.00018935,2]
[368338244,1751129432340,-168.0,0.00018941,2]
[368338246,1751129432349,-1835.22816124,0.00018944,2]
[368338249,1751129432359,-848.59,0.00018966,3]
[368338252,1751129432369,-672.11894312,0.00018969,2]
[368338256,1751129432379,-1001.24498345,0.00018975,2]
[368338259,1751129432389,-500.0,0.00018975,2]
[368338262,1751129432398,-246.73070236,0.00018975,2]
[368338265,1751129432407,-500.0,0.00018975,2]
[368338268,1751129432417,-534.16434363,0.00018975,2]
[368338270,1751129432426,-588.58859798,0.00018975,2]
[368338272,1751129432436,-500.0,0.00018975,2]
[368338274,1751129432445,-346.42764463,0.00018975,2]
[368338276,1751129432455,-500.0,0.00018975,2]
[368338278,1751129432467,-500.0,0.00018975,2]
[368338280,1751129432477,-474.16061118,0.00018975,2]
[368338282,1751129432487,-500.0,0.00018975,2]
[368338284,1751129432497,-500.0,0.00018975,2]
[368338286,1751129432506,-588.58859798,0.00018975,2]
[368338288,1751129432515,-500.0,0.00018975,2]
[368338290,1751129432524,-500.0,0.00018975,2]
[368338292,1751129432534,-500.0,0.00018975,2]
[368338294,1751129432543,-500.0,0.00018975,2]
[368338296,1751129432553,-588.58859798,0.00018975,2]
[368338298,1751129432562,-500.0,0.00018975,2]
[368338300,1751129432572,-500.0,0.00018975,2]
[368338302,1751129432581,-450.00000001,0.00018975,2]
[368338303,1751129432590,-588.58859798,0.00018975,2]
[368338305,1751129432600,-500.0,0.00018975,2]
[368338307,1751129432610,-500.0,0.00018975,2]
[368338309,1751129432619,-392.39449475,0.00018975,2]
[368338311,1751129432630,-500.0,0.00018975,2]
[368338313,1751129432640,-500.0,0.00018975,2]
[368338315,1751129432654,-500.0,0.00018975,2]
[368338317,1751129432663,-588.58859798,0.00018975,2]
[368338319,1751129432673,-500.0,0.00018975,2]
[368338321,1751129432683,-500.0,0.00018975,2]
[368338323,1751129432694,-588.58859798,0.00018975,2]
[368338324,1751129432704,-500.0,0.00018975,2]
[368338325,1751129432714,-500.0,0.00018975,2]
[368338326,1751129432726,-500.0,0.00018975,2]
[368338327,1751129432736,-588.58859798,0.00018975,2]
[368338328,1751129432746,-500.0,0.00018975,2]
[368338329,1751129432756,-500.0,0.00018975,2]
[368338330,1751129432766,-588.58859798,0.00018975,2]
[368338331,1751129432776,-500.0,0.00018975,2]
[368338332,1751129432786,-500.0,0.00018975,2]
[368338333,1751129432796,-500.0,0.00018975,2]
[368338334,1751129432806,-588.58859798,0.00018975,2]
[368338335,1751129432817,-500.0,0.00018975,2]
[368338336,1751129432826,-500.0,0.00018975,2]
[368338337,1751129432836,-500.0,0.00018975,2]
[368338338,1751129432846,-500.0,0.00018975,2]
[368338339,1751129432856,-588.58859798,0.00018975,2]
[368338340,1751129432867,-500.0,0.00018975,2]
[368338341,1751129432877,-500.0,0.00018975,2]
[368338342,1751129432886,-588.58859798,0.00018975,2]
[368338343,1751129432897,-500.0,0.00018975,2]
[368338344,1751129432907,-588.58859798,0.00018975,2]
[368338345,1751129432917,-500.0,0.00018975,2]
[368338346,1751129432927,-588.58859798,0.00018975,2]
[368338347,1751129432936,-500.0,0.00018975,2]
[368338348,1751129432946,-500.0,0.00018975,2]
[368338349,1751129432956,-588.58859798,0.00018975,2]
[368338350,1751129432966,-500.0,0.00018975,2]
[368338351,1751129432976,-588.58859798,0.00018975,2]
[368338352,1751129432985,-500.0,0.00018975,2]
[368338353,1751129432995,-559.82767696,0.00018975,2]
[368338354,1751129433004,-500.0,0.00018975,2]
[368338355,1751129433014,-588.58859798,0.00018975,2]
[368338356,1751129433024,-500.0,0.00018975,2]
[368338357,1751129433035,-588.58859798,0.00018975,2]
[368338358,1751129433045,-500.0,0.00018975,2]
[368338359,1751129433055,-588.58859798,0.00018975,2]
[368338360,1751129433065,-500.0,0.00018975,2]
[368338361,1751129433075,-500.0,0.00018975,2]
[368338362,1751129433085,-588.58859798,0.00018975,2]
[368338363,1751129433095,-588.58859798,0.00018975,2]
[368338364,1751129433105,-500.0,0.00018975,2]
[368338365,1751129433115,-588.58859798,0.00018975,2]
[368338366,1751129433126,-588.58859798,0.00018975,2]
[368338367,1751129433135,-500.0,0.00018975,2]
[368338368,1751129433145,-588.58859798,0.00018975,2]
[368338369,1751129433156,-588.58859798,0.00018975,2]
[368338370,1751129433165,-500.0,0.00018975,2]
[368338371,1751129433175,-588.58859798,0.00018975,2]
[368338372,1751129433184,-588.58859798,0.00018975,2]
[368338373,1751129433195,-588.58859798,0.00018975,2]
[368338374,1751129433205,-588.58859798,0.00018975,2]
[368338375,1751129433214,-500.0,0.00018975,2]
[368338376,1751129433224,-500.0,0.00018975,2]
[368338377,1751129433234,-588.58859798,0.00018975,2]
[368338378,1751129433243,-500.0,0.00018975,2]
[368338379,1751129433253,-588.58859798,0.00018975,2]
[368338380,1751129433264,-500.0,0.00018975,2]
[368338381,1751129433275,-588.58859798,0.00018975,2]
[368338382,1751129433286,-469.0339133,0.00018975,2]
[368338383,1751129433311,-30.9660867,0.00018975,2]
[368338384,1751129433322,-588.58859798,0.00018975,2]
[368338385,1751129433332,-588.58859798,0.00018975,2]
[368338386,1751129433343,-500.0,0.00018975,2]
[368338387,1751129433354,-588.58859798,0.00018975,2]
[368338388,1751129433365,-411.55185658,0.00018975,2]
[368338389,1751129433375,-588.58859798,0.00018975,2]
[368338390,1751129433385,-588.58859798,0.00018975,2]
[368338391,1751129433396,-588.58859798,0.00018975,2]
[368338392,1751129433406,-500.0,0.00018975,2]
[368338393,1751129433417,-588.58859798,0.00018975,2]
[368338394,1751129433427,-588.58859798,0.00018975,2]
[368338395,1751129433438,-500.0,0.00018975,2]
[368338396,1751129433448,-588.58859798,0.00018975,2]
[368338397,1751129433458,-588.58859798,0.00018975,2]
[368338398,1751129433469,-588.58859798,0.00018975,2]
[368338399,1751129433479,-588.58859798,0.00018975,2]
[368338400,1751129433489,-588.58859798,0.00018975,2]
[368338401,1751129433499,-588.58859798,0.00018975,2]
[368338402,1751129433509,-588.58859798,0.00018975,2]
[368338403,1751129433518,-588.58859798,0.00018975,2]
[368338404,1751129433528,-588.58859798,0.00018975,2]
[368338405,1751129433539,-588.58859798,0.00018975,2]
[368338406,1751129433549,-588.58859798,0.00018975,2]
[368338407,1751129433558,-588.58859798,0.00018975,2]
[368338408,1751129433568,-588.58859798,0.00018975,2]
[368338409,1751129433578,-588.58859798,0.00018975,2]
[368338410,1751129433588,-588.58859798,0.00018975,2]
[368338411,1751129433598,-588.58859798,0.00018975,2]
[368338412,1751129433608,-588.58859798,0.00018975,2]
[368338413,1751129433619,-588.58859798,0.00018975,2]
[368338414,1751129433629,-588.58859798,0.00018975,2]
[368338415,1751129433640,-500.0,0.00018975,2]
[368338416,1751129433655,-500.0,0.00018975,2]
[368338417,1751129433664,-500.0,0.00018975,2]
[368338418,1751129433812,-500.0,0.00018975,2]
[368338419,1751129433822,-500.0,0.00018975,2]
[368338420,1751129433833,-500.0,0.00018975,2]
[368338421,1751129433843,-500.0,0.00018975,2]
[368338422,1751129433853,-500.0,0.00018975,2]
[368338423,1751129433864,-500.0,0.00018975,2]
[368338424,1751129433874,-500.0,0.00018975,2]
[368338425,1751129433885,-500.0,0.00018975,2]
[368338426,1751129433896,-500.0,0.00018975,2]
[368338427,1751129433907,-500.0,0.00018975,2]
[368338428,1751129433918,-500.0,0.00018975,2]
[368338429,1751129433928,-500.0,0.00018975,2]
[368338430,1751129433938,-500.0,0.00018975,2]
[368338431,1751129433949,-500.0,0.00018975,2]
[368338432,1751129433958,-500.0,0.00018975,2]
[368338433,1751129433968,-500.0,0.00018975,2]
[368338434,1751129433977,-500.0,0.00018975,2]
[368338435,1751129433987,-500.0,0.00018975,2]
[368338436,1751129433997,-500.0,0.00018975,2]
[368338437,1751129434007,-500.0,0.00018975,2]
[368338438,1751129434016,-500.0,0.00018975,2]
[368338439,1751129434025,-500.0,0.00018975,2]
[368338440,1751129434036,-500.0,0.00018975,2]
[368338441,1751129434046,-500.0,0.00018975,2]
[368338442,1751129434055,-500.0,0.00018975,2]
[368338443,1751129434066,-443.76625947,0.00018975,2]
[368338444,1751129434076,-500.0,0.00018975,2]
[368338445,1751129434085,-500.0,0.00018975,2]
[368338446,1751129434096,-257.48414983,0.00018975,2]
[368338447,1751129434106,-500.0,0.00018975,2]
[368338448,1751129434115,-500.0,0.00018975,2]
[368338449,1751129434125,-500.0,0.00018975,2]
[368338450,1751129434134,-500.0,0.00018975,2]
[368338451,1751129434144,-500.0,0.00018975,2]
[368338452,1751129434154,-500.0,0.00018975,2]
[368338453,1751129434163,-500.0,0.00018975,2]
[368338454,1751129434173,-500.0,0.00018975,2]
[368338455,1751129434183,-500.0,0.00018975,2]
[368338456,1751129434193,-500.0,0.00018975,2]
[368338457,1751129434202,-500.0,0.00018975,2]
[368338458,1751129434213,-500.0,0.00018975,2]
[368338459,1751129434223,-500.0,0.00018975,2]
[368338460,1751129434233,-500.0,0.00018975,2]
[368338461,1751129434244,-500.0,0.00018975,2]
[368338462,1751129434254,-500.0,0.00018975,2]
[368338463,1751129434264,-474.92576014,0.00018975,2]
[368338464,1751129434593,-25.07423986,0.00018975,2]
[368338465,1751129434603,-500.0,0.00018975,2]
[368338466,1751129434613,-457.9090041,0.00018975,2]
[368338467,1751129434626,-42.0909959,0.00018975,2]
[368338468,1751129434635,-446.0359794,0.00018975,2]
[368338469,1751129434656,-53.9640206,0.00018975,2]
[368338470,1751129434667,-500.0,0.00018975,2]
[368338471,1751129434677,-500.0,0.00018975,2]
[368338472,1751129434687,-500.0,0.00018975,2]
[368338473,1751129434698,-500.0,0.00018975,2]
[368338474,1751129434708,-500.0,0.00018975,2]
[368338475,1751129434718,-500.0,0.00018975,2]
[368338476,1751129434729,-500.0,0.00018975,2]
[368338477,1751129434739,-500.0,0.00018975,2]
[368338478,1751129434749,-500.0,0.00018975,2]
[368338479,1751129434759,-500.0,0.00018975,2]
[368338480,1751129434769,-670.17991676,0.00018975,2]
[368338481,1751129434778,-670.17991676,0.00018975,2]
[368338482,1751129434788,-670.17991676,0.00018975,2]
[368338483,1751129434798,-670.17991676,0.00018975,2]
[368338484,1751129434809,-670.17991676,0.00018975,2]
[368338485,1751129434818,-670.17991676,0.00018975,2]
[368338486,1751129434828,-670.17991676,0.00018975,2]
[368338487,1751129434838,-670.17991676,0.00018975,2]
[368338488,1751129434848,-670.17991676,0.00018975,2]
[368338489,1751129434857,-500.0,0.00018975,2]
[368338490,1751129434868,-670.17991676,0.00018975,2]
[368338491,1751129434878,-498.85429593,0.00018975,2]
[368338530,1751129437944,-1.14570407,0.00018975,2]
[368338532,1751129437954,-670.17991676,0.00018975,2]
[368338534,1751129437963,-500.0,0.00018975,2]
[368338536,1751129437973,-500.0,0.00018975,2]
[368338538,1751129437982,-135.0856915,0.00018975,2]
[368338547,1751129438043,-535.09422526,0.00018975,2]
[368338550,1751129438053,-500.0,0.00018975,2]
[368338553,1751129438062,-500.0,0.00018975,2]
[368338556,1751129438072,-670.17991676,0.00018975,2]
[368338558,1751129438081,-500.0,0.00018975,2]
[368338560,1751129438091,-478.98585878,0.00018975,2]
[368338575,1751129438302,-21.01414122,0.00018975,2]
[368338576,1751129438312,-670.17991676,0.00018975,2]
[368338578,1751129438321,-500.0,0.00018975,2]
[368338579,1751129438330,-500.0,0.00018975,2]
[368338581,1751129438340,-670.17991676,0.00018975,2]
[368338583,1751129438349,-500.0,0.00018975,2]
[368338585,1751129438360,-500.0,0.00018975,2]
[368338586,1751129438369,-670.17991676,0.00018975,2]
[368338587,1751129438379,-500.0,0.00018975,2]
[368338589,1751129438389,-670.17991676,0.00018975,2]
[368338590,1751129438398,-500.0,0.00018975,2]
[368338591,1751129438407,-500.0,0.00018975,2]
[368338592,1751129438417,-670.17991676,0.00018975,2]
[368338593,1751129438426,-556.83909518,0.00018975,2]
[368338594,1751129438435,-500.0,0.00018975,2]
[368338595,1751129438445,-670.17991676,0.00018975,2]
[368338596,1751129438454,-500.0,0.00018975,2]
[368338597,1751129438464,-670.17991676,0.00018975,2]
[368338598,1751129438474,-500.0,0.00018975,2]
[368338599,1751129438483,-670.17991676,0.00018975,2]
[368338600,1751129438493,-670.17991676,0.00018975,2]
[368338601,1751129438503,-500.0,0.00018975,2]
[368338602,1751129438512,-500.0,0.00018975,2]
[368338603,1751129438522,-670.17991676,0.00018975,2]
[368338604,1751129438531,-500.0,0.00018975,2]
[368338605,1751129438541,-500.0,0.00018975,2]
[368338606,1751129438550,-670.17991676,0.00018975,2]
[368338607,1751129438559,-500.0,0.00018975,2]
[368338608,1751129438569,-670.17991676,0.00018975,2]
[368338609,1751129438579,-500.0,0.00018975,2]
[368338610,1751129438588,-670.17991676,0.00018975,2]
[368338611,1751129438598,-500.0,0.00018975,2]
[368338612,1751129438607,-500.0,0.00018975,2]
[368338613,1751129438617,-670.17991676,0.00018975,2]
[368338614,1751129438626,-500.0,0.00018975,2]
[368338615,1751129438635,-500.0,0.00018975,2]
[368338616,1751129438649,-670.17991676,0.00018975,2]
[368338617,1751129438660,-500.0,0.00018975,2]
[368338618,1751129438669,-500.0,0.00018975,2]
[368338619,1751129438679,-500.0,0.00018975,2]
[368338620,1751129438691,-500.0,0.00018975,2]
[368338621,1751129438701,-670.17991676,0.00018975,2]
[368338622,1751129438712,-500.0,0.00018975,2]
[368338623,1751129438724,-500.0,0.00018975,2]